bitfinex-derivatives/quotes_BTCF0:USTF0_20251225
["timestamp","ask_amount","ask_price","bid_price","bid_amount"]
[1766691198366,0.02623114,88140.0,88127.0,0.0413551]
[1766691198676,0.0001702,88141.0,88127.0,0.0413551]
[1766691202475,0.0113529,88145.0,88127.0,0.0413551]
[1766691202476,0.05684,88153.0,88127.0,0.03]
[1766691202678,0.02623114,88152.0,88138.0,0.0113537]
[1766691202877,0.02623114,88151.0,88138.0,0.0113537]
[1766691203070,0.02623114,88150.0,88138.0,0.0113537]
[1766691203270,0.02623114,88149.0,88138.0,0.0113537]
[1766691203580,0.02623114,88148.0,88138.0,0.0113537]
[1766691203877,0.02623114,88147.0,88135.0,0.011354]
[1766691204062,0.02623114,88146.0,88135.0,0.031354]
[1766691204265,0.02623114,88145.0,88135.0,0.031354]
[1766691204465,0.0113527,88147.0,88129.0,0.0681948]
[1766691204666,0.02623447,88146.0,88129.0,0.0981948]
[1766691204964,0.02623447,88145.0,88129.0,0.0981948]
[1766691205165,0.02623447,88144.0,88129.0,0.0981948]
[1766691205465,0.0113527,88147.0,88129.0,0.0981948]
[1766691205668,0.02623615,88146.0,88129.0,0.0981948]
[1766691205867,0.02623615,88145.0,88129.0,0.0981948]
[1766691206066,0.02623615,88144.0,88131.0,0.0113546]
[1766691206280,0.0113527,88147.0,88131.0,0.0413546]
[1766691206477,0.02623994,88146.0,88131.0,0.0413546]
[1766691206682,0.02623994,88145.0,88131.0,0.0413546]
[1766691206977,0.02623994,88144.0,88131.0,0.0413546]
[1766691207178,0.02624165,88143.0,88131.0,0.0413546]
[1766691207382,0.0113527,88147.0,88131.0,0.0413546]
[1766691207680,0.02624205,88146.0,88131.0,0.03]
[1766691207879,0.02624205,88145.0,88131.0,0.03]
[1766691208069,0.02624205,88144.0,88131.0,0.03]
[1766691208270,0.02624205,88143.0,88131.0,0.03]
[1766691208479,0.0113527,88147.0,88131.0,0.03]
[1766691208682,0.0113528,88145.0,88131.0,0.03]
[1766691208883,0.02624545,88144.0,88132.0,0.0113545]
[1766691209182,0.02624545,88143.0,88132.0,0.0413545]
[1766691209481,0.0113525,88148.0,88132.0,0.0413545]
[1766691209677,0.0262496,88147.0,88132.0,0.0413545]
[1766691209980,0.0262496,88146.0,88132.0,0.0413545]
[1766691210170,0.0262496,88145.0,88132.0,0.0413545]
[1766691210370,0.0262496,88144.0,88132.0,0.0413545]
[1766691210581,0.0262496,88143.0,88134.0,0.0113542]
[1766691210774,0.0966902,88152.0,88130.0,0.07734988]
[1766691210977,0.0966902,88152.0,88130.0,0.10734988]
[1766691211371,0.1080422,88152.0,88130.0,0.10734988]
[1766691212181,0.1080422,88152.0,88134.0,0.0113541]
[1766691212381,0.0115222,88152.0,88130.0,0.07734988]
[1766691212688,0.0115222,88152.0,88130.0,0.10734988]
[1766691213286,0.0113523,88150.0,88134.0,0.0113542]
[1766691213587,0.0113523,88150.0,88134.0,0.0413542]
[1766691213990,0.0001702,88152.0,88136.0,0.011354]
[1766691217490,0.0001702,88152.0,88138.0,0.0113536]
[1766691220591,0.0001702,88152.0,88135.0,0.011354]
[1766691220891,0.0001702,88152.0,88135.0,0.031354]
[1766691221191,0.0115222,88152.0,88135.0,0.031354]
[1766691222892,0.0260249,88151.0,88135.0,0.031354]
[1766691223196,0.0260249,88150.0,88135.0,0.031354]
[1766691223381,0.0260249,88149.0,88135.0,0.031354]
[1766691223694,0.0260249,88148.0,88135.0,0.031354]
[1766691223994,0.0260249,88147.0,88135.0,0.031354]
[1766691224292,0.0260249,88146.0,88135.0,0.031354]
[1766691224487,0.0110249,88145.0,88135.0,0.031354]
[1766691224794,0.0115222,88152.0,88135.0,0.031354]
[1766691225699,0.09652,88155.0,88135.0,0.02]
[1766691226696,0.0001702,88154.0,88135.0,0.02]
[1766691227187,0.0115219,88154.0,88138.0,0.0113537]
[1766691235711,0.072313,88154.0,88138.0,0.0113537]
[1766691236410,0.02596257,88153.0,88138.0,0.0113537]
[1766691236616,0.02596257,88152.0,88138.0,0.0113537]
[1766691236818,0.02596257,88151.0,88138.0,0.0113537]
[1766691237115,0.02596257,88150.0,88138.0,0.0113537]
[1766691237316,0.02596257,88149.0,88138.0,0.0113537]
[1766691237616,0.02596257,88148.0,88138.0,0.0113537]
[1766691237811,0.02596257,88147.0,88138.0,0.0113537]
[1766691238016,0.02596257,88146.0,88140.0,0.0113534]
[1766691238217,0.02596257,88145.0,88140.0,0.0113534]
[1766691238417,0.02596257,88144.0,88140.0,0.0113534]
[1766691238621,0.0001702,88154.0,88140.0,0.0113534]
[1766691238820,0.02596413,88153.0,88140.0,0.0113534]
[1766691239019,0.02596413,88152.0,88140.0,0.0113534]
[1766691239314,0.02596413,88151.0,88140.0,0.0113534]
[1766691239520,0.02596413,88150.0,88140.0,0.0113534]
[1766691239715,0.02596413,88149.0,88140.0,0.0113534]
[1766691239916,0.02596413,88148.0,88140.0,0.0113534]
[1766691240116,0.02596413,88147.0,88140.0,0.0113534]
[1766691240413,0.02596413,88146.0,88140.0,0.0113534]
[1766691240721,0.0001702,88154.0,88140.0,0.0113534]
[1766691241122,0.0001702,88154.0,88140.0,0.07734988]
[1766691242318,0.0001702,88154.0,88140.0,0.09734988]
[1766691242623,0.0001702,88154.0,88144.0,0.0113528]
[1766691243015,0.0001702,88154.0,88146.0,0.0113527]
[1766691244726,0.05684,88160.0,88150.0,0.0113521]
[1766691245111,0.05084,88160.0,88150.0,0.0113521]
[1766691245316,0.0721407,88170.0,88152.0,0.0113519]
[1766691245627,0.05684,88169.0,88154.0,0.0113516]
[1766691247926,0.05684,88169.0,88150.0,0.06487168]
[1766691248917,0.05684,88169.0,88151.0,0.0001702]
[1766691249118,0.0001702,88170.0,88151.0,0.0301702]
[1766691249328,0.0001702,88170.0,88158.0,0.0113511]
[1766691250730,0.0001702,88170.0,88160.0,0.07734988]
[1766691251830,0.0001702,88170.0,88158.0,0.0113511]
[1766691252532,0.02583087,88169.0,88158.0,0.0113511]
[1766691252721,0.02583087,88168.0,88158.0,0.0113511]
[1766691252922,0.02583087,88167.0,88158.0,0.0113511]
[1766691253122,0.02583087,88166.0,88158.0,0.0113511]
[1766691253322,0.02583087,88165.0,88158.0,0.0113511]
[1766691253522,0.02583087,88164.0,88158.0,0.0113511]
[1766691253730,0.02583087,88163.0,88158.0,0.0113511]
[1766691253932,7e-08,88162.0,88158.0,0.0113511]
[1766691254234,0.0001702,88170.0,88158.0,0.0113511]
[1766691254935,0.0001702,88170.0,88150.0,0.07487118]
[1766691255234,0.0001702,88170.0,88158.0,0.0113511]
[1766691262141,0.0001702,88170.0,88150.0,0.07239248]
[1766691262444,0.0001702,88170.0,88150.0,0.10239248]
[1766691263041,0.0001702,88170.0,88151.0,0.0001702]
[1766691263241,0.0001702,88170.0,88159.0,0.011351]
[1766691265850,0.02571383,88169.0,88159.0,0.011351]
[1766691266140,0.02571383,88168.0,88159.0,0.011351]
[1766691266341,0.02571383,88167.0,88159.0,0.011351]
[1766691266535,0.02571383,88166.0,88159.0,0.011351]
[1766691266726,0.02571383,88165.0,88159.0,0.011351]
[1766691267029,0.02571383,88164.0,88159.0,0.011351]
[1766691267227,0.02571383,88163.0,88159.0,0.011351]
[1766691267425,0.0001702,88170.0,88159.0,0.011351]
[1766691267741,0.02571898,88169.0,88159.0,0.011351]
[1766691268041,0.02571898,88168.0,88159.0,0.011351]
[1766691268230,0.02571898,88167.0,88159.0,0.011351]
[1766691268426,0.02571898,88166.0,88159.0,0.011351]
[1766691268636,0.02571898,88165.0,88159.0,0.011351]
[1766691268836,0.02571898,88164.0,88159.0,0.011351]
[1766691269040,0.02571898,88163.0,88159.0,0.011351]
[1766691269240,0.0001702,88170.0,88161.0,0.0113507]
[1766691274349,0.0001702,88170.0,88158.0,0.011351]
[1766691276144,0.0001702,88170.0,88158.0,0.006351]
[1766691278451,0.06096752,88169.0,88158.0,0.006351]
[1766691280354,0.06096752,88169.0,88160.0,0.0113508]
[1766691280654,0.06096752,88169.0,88159.0,0.0113509]
[1766691281553,0.08640838,88169.0,88159.0,0.0113509]
[1766691283255,0.08640838,88169.0,88152.0,0.0107027]
[1766691283554,0.08640838,88169.0,88152.0,0.0307027]
[1766691284354,0.08640838,88169.0,88159.0,0.011351]
[1766691288463,0.02544086,88169.0,88159.0,0.011351]
[1766691289563,0.02544086,88169.0,88156.0,0.0113513]
[1766691291065,0.02544086,88169.0,88151.0,0.0960415]
[1766691291363,0.02544086,88169.0,88156.0,0.0113513]
[1766691298172,0.02544086,88169.0,88151.0,0.0893928]
[1766691298357,0.02544086,88169.0,88151.0,0.1193928]
[1766691299162,0.02544086,88169.0,88156.0,0.0113513]
[1766691301178,0.02544086,88169.0,88151.0,0.0893928]
[1766691301379,0.02544086,88169.0,88151.0,0.1193928]
[1766691302077,0.02544086,88169.0,88159.0,0.011351]
[1766691305278,0.02544086,88169.0,88151.0,0.0893928]
[1766691305279,0.02544086,88169.0,88151.0,0.0887438]
[1766691305481,0.02544086,88169.0,88151.0,0.1187438]
[1766691307182,0.02544086,88169.0,88157.0,0.0113512]
[1766691310682,0.02544086,88169.0,88151.0,0.0887438]
[1766691310987,0.06096752,88174.0,88164.0,0.0113504]
[1766691311283,0.05684,88178.0,88164.0,0.0113504]
[1766691311969,0.05684,88178.0,88161.0,0.0113507]
[1766691312171,0.05684,88178.0,88162.0,0.0001702]
[1766691315688,0.05684,88178.0,88163.0,0.0113505]
[1766691318090,0.05684,88178.0,88162.0,0.0001702]
[1766691318091,0.0001702,88180.0,88162.0,0.0001702]
[1766691318493,0.06096752,88178.0,88162.0,0.0001702]
[1766691318691,0.06096752,88179.0,88162.0,0.0001702]
[1766691319092,0.06096752,88179.0,88168.0,0.0113498]
[1766691320499,0.06113772,88180.0,88168.0,0.0113498]
[1766691321600,0.06113772,88180.0,88172.0,0.0113493]
[1766691321894,0.0001702,88180.0,88170.0,0.0113496]
[1766691322096,0.0001702,88180.0,88167.0,0.01135]
[1766691322297,0.0001702,88180.0,88169.0,0.0113497]
[1766691322497,0.0001702,88180.0,88161.0,0.0900399]
[1766691322704,0.0001702,88180.0,88161.0,0.1200399]
[1766691322994,0.02520434,88179.0,88161.0,0.1200399]
[1766691323195,0.02520434,88178.0,88161.0,0.1200399]
[1766691323397,0.02520434,88177.0,88161.0,0.1200399]
[1766691323591,0.02520434,88176.0,88161.0,0.1200399]
[1766691323793,0.02520434,88175.0,88161.0,0.1200399]
[1766691323999,0.02520434,88174.0,88161.0,0.1200399]
[1766691324198,0.02520434,88173.0,88167.0,0.01135]
[1766691324499,4e-08,88172.0,88169.0,0.0113497]
[1766691324701,0.0001702,88180.0,88169.0,0.0113497]
[1766691325301,0.0001702,88180.0,88171.0,0.0113494]
[1766691326098,0.0001702,88180.0,88165.0,0.0113502]
[1766691326301,0.0001702,88180.0,88167.0,0.01135]
[1766691329501,0.0001702,88180.0,88161.0,0.0843899]
[1766691329803,0.0001702,88180.0,88161.0,0.1143899]
[1766691330103,0.0001702,88180.0,88169.0,0.0113496]
[1766691332701,0.0001702,88180.0,88171.0,0.0113494]
[1766691332892,0.0001702,88180.0,88168.0,0.0113498]
[1766691333087,0.0001702,88180.0,88174.0,0.011349]
[1766691335699,0.0001702,88180.0,88170.0,0.08862466]
[1766691336000,0.0001702,88180.0,88168.0,0.0568]
[1766691336206,0.0001702,88180.0,88168.0,0.0868]
[1766691336394,0.02507736,88179.0,88168.0,0.0868]
[1766691336594,0.02507736,88178.0,88168.0,0.0608]
[1766691336791,0.02507736,88177.0,88168.0,0.0608]
[1766691337003,0.02507736,88176.0,88168.0,0.0608]
[1766691337301,0.0001702,88180.0,88168.0,0.0608]
[1766691337507,0.02508143,88179.0,88168.0,0.0608]
[1766691337805,0.02508143,88178.0,88168.0,0.0608]
[1766691338006,0.02508143,88177.0,88168.0,0.0608]
[1766691338208,0.02508143,88176.0,88168.0,0.0608]
[1766691338409,0.0001702,88180.0,88168.0,0.0608]
[1766691338594,0.02490308,88179.0,88168.0,0.0608]
[1766691338910,0.02490308,88178.0,88168.0,0.0608]
[1766691339104,0.02490308,88177.0,88168.0,0.0608]
[1766691339409,0.02489677,88176.0,88168.0,0.0608]
[1766691339600,0.02489677,88175.0,88168.0,0.0608]
[1766691339801,0.0001702,88180.0,88168.0,0.0608]
[1766691340003,0.02489667,88179.0,88168.0,0.0608]
[1766691340204,0.02489667,88178.0,88168.0,0.0608]
[1766691340400,0.02489667,88177.0,88168.0,0.0608]
[1766691340605,0.02489667,88176.0,88168.0,0.0608]
[1766691340806,0.02489667,88175.0,88168.0,0.0608]
[1766691341006,0.02489667,88174.0,88168.0,0.0608]
[1766691341207,0.0001702,88180.0,88168.0,0.0608]
[1766691341421,0.02490065,88179.0,88168.0,0.0608]
[1766691341614,0.02490065,88178.0,88168.0,0.0608]
[1766691341817,0.02490065,88177.0,88168.0,0.0608]
[1766691342015,0.02490065,88176.0,88168.0,0.0608]
[1766691342309,0.02490065,88175.0,88168.0,0.0608]
[1766691342516,0.02490065,88174.0,88168.0,0.0608]
[1766691342706,0.0001702,88180.0,88168.0,0.0608]
[1766691342907,0.02490286,88179.0,88168.0,0.0608]
[1766691343214,0.02490286,88178.0,88168.0,0.0608]
[1766691343409,0.02490286,88177.0,88168.0,0.0608]
[1766691343609,0.02490286,88176.0,88168.0,0.0398]
[1766691343810,0.02490286,88175.0,88168.0,0.0398]
[1766691344008,0.0001702,88180.0,88168.0,0.0398]
[1766691344817,0.0001702,88180.0,88168.0,0.0511498]
[1766691349712,0.0001702,88180.0,88170.0,0.0113496]
[1766691349912,0.0001702,88180.0,88172.0,0.0113493]
[1766691351519,0.0001702,88180.0,88168.0,0.0098]
[1766691351826,0.0001702,88180.0,88172.0,0.0113493]
[1766691352722,0.0113474,88187.0,88172.0,0.0113493]
[1766691355929,0.02482727,88186.0,88172.0,0.0113493]
[1766691356120,0.02482727,88185.0,88172.0,0.0113493]
[1766691356321,0.00382727,88184.0,88172.0,0.0113493]
[1766691356624,0.0113474,88187.0,88172.0,0.0113493]
[1766691357229,0.0001702,88188.0,88174.0,0.0113491]
[1766691358625,0.06113772,88188.0,88168.0,0.10628]
[1766691358824,0.06113772,88188.0,88173.0,0.0113492]
[1766691361826,0.06113772,88188.0,88170.0,0.07727516]
[1766691362025,0.0113477,88185.0,88168.0,0.10628]
[1766691362224,0.0113477,88185.0,88168.0,0.13628]
[1766691365727,0.0113477,88185.0,88169.0,0.0568]
[1766691366534,0.0113477,88185.0,88169.0,0.0681496]
[1766691366722,0.06096752,88186.0,88167.0,0.0001702]
[1766691366928,0.0113488,88177.0,88170.0,0.05645953]
[1766691367131,0.0113488,88177.0,88170.0,0.03318347]
[1766691367527,0.0113488,88177.0,88167.0,0.0966502]
[1766691367528,0.0113488,88177.0,88167.0,0.0001702]
[1766691367737,0.011349,88175.0,88160.0,0.0568]
[1766691368028,0.011349,88175.0,88161.0,0.0113507]
[1766691368230,0.011349,88175.0,88161.0,0.0413507]
[1766691368432,0.0247355,88174.0,88161.0,0.0413507]
[1766691368631,0.0247355,88173.0,88161.0,0.0413507]
[1766691368836,0.0247355,88172.0,88161.0,0.0413507]
[1766691369039,0.0247355,88171.0,88161.0,0.0413507]
[1766691369236,0.011349,88175.0,88161.0,0.0413507]
[1766691369237,0.0247355,88170.0,88161.0,0.0413507]
[1766691369441,0.0247355,88169.0,88161.0,0.0413507]
[1766691369645,0.0247355,88168.0,88161.0,0.0413507]
[1766691369834,0.011349,88175.0,88161.0,0.0413507]
[1766691370034,0.02473207,88174.0,88161.0,0.0413507]
[1766691370238,0.02473207,88173.0,88161.0,0.0413507]
[1766691370441,0.02473207,88172.0,88161.0,0.0413507]
[1766691370643,0.02473207,88171.0,88161.0,0.03]
[1766691370943,0.07727516,88180.0,88161.0,0.03]
[1766691370944,0.02473207,88170.0,88161.0,0.03]
[1766691371242,0.02473207,88169.0,88161.0,0.03]
[1766691371449,0.0113493,88173.0,88161.0,0.03]
[1766691371743,0.02472955,88172.0,88161.0,0.03]
[1766691371943,0.02472955,88171.0,88161.0,0.03]
[1766691372146,0.02472955,88170.0,88161.0,0.03]
[1766691372345,0.02472955,88169.0,88161.0,0.03]
[1766691372546,0.02472955,88168.0,88161.0,0.03]
[1766691372747,0.02472955,88167.0,88161.0,0.03]
[1766691373044,0.02472955,88166.0,88161.0,0.03]
[1766691373233,0.0113498,88169.0,88160.0,0.0568]
[1766691373435,0.02472562,88168.0,88160.0,0.0868]
[1766691373635,0.02472562,88167.0,88160.0,0.0868]
[1766691373841,0.02472562,88166.0,88160.0,0.0868]
[1766691374032,0.0113498,88169.0,88160.0,0.0868]
[1766691374238,0.02472559,88168.0,88160.0,0.0868]
[1766691374437,0.02472559,88167.0,88160.0,0.0868]
[1766691374650,0.02472559,88166.0,88160.0,0.0868]
[1766691374837,0.0113498,88169.0,88160.0,0.0868]
[1766691375033,0.02472305,88168.0,88160.0,0.0568]
[1766691375242,0.02472305,88167.0,88160.0,0.0568]
[1766691375442,0.02472305,88166.0,88160.0,0.0568]
[1766691375637,0.02472305,88165.0,88160.0,0.0568]
[1766691375851,0.0113498,88169.0,88160.0,0.0568]
[1766691376038,0.02471949,88168.0,88160.0,0.0568]
[1766691376235,0.02471949,88167.0,88154.0,0.0113516]
[1766691376548,0.02471949,88166.0,88155.0,0.0568]
[1766691376743,0.02471949,88165.0,88155.0,0.0868]
[1766691376940,0.01152,88169.0,88155.0,0.0868]
[1766691377141,0.02471692,88168.0,88155.0,0.0868]
[1766691377345,0.02471692,88167.0,88155.0,0.0868]
[1766691377541,0.02471692,88166.0,88155.0,0.0868]
[1766691377738,0.01152,88169.0,88155.0,0.0868]
[1766691377943,0.02471466,88168.0,88155.0,0.0868]
[1766691378144,0.02471466,88167.0,88155.0,0.0868]
[1766691378349,0.02471466,88166.0,88155.0,0.0868]
[1766691378545,0.01152,88169.0,88155.0,0.0868]
[1766691378745,0.02471273,88168.0,88155.0,0.0868]
[1766691379042,0.01152,88169.0,88155.0,0.0868]
[1766691379244,0.02471271,88168.0,88155.0,0.0868]
[1766691379441,0.01152,88169.0,88155.0,0.0868]
[1766691379642,0.02471103,88168.0,88155.0,0.0868]
[1766691379844,0.01152,88169.0,88155.0,0.0868]
[1766691381651,0.01152,88169.0,88156.0,0.0113514]
[1766691381850,0.01152,88169.0,88156.0,0.0413514]
[1766691386948,0.01152,88169.0,88156.0,0.03]
[1766691387151,0.01135,88167.0,88156.0,0.03]
[1766691394459,0.0113499,88168.0,88156.0,0.03]
[1766691396263,0.02472432,88167.0,88156.0,0.03]
[1766691396457,0.0113499,88168.0,88156.0,0.03]
[1766691396659,0.02472432,88167.0,88156.0,0.03]
[1766691396859,0.0113499,88168.0,88156.0,0.03]
[1766691397061,0.02472434,88167.0,88156.0,0.03]
[1766691397261,0.0113499,88168.0,88156.0,0.03]
[1766691397462,0.02472591,88167.0,88156.0,0.03]
[1766691397663,0.0113499,88168.0,88156.0,0.03]
[1766691397864,0.02472591,88167.0,88156.0,0.03]
[1766691398164,0.01152,88169.0,88156.0,0.03]
[1766691398367,0.02476272,88168.0,88156.0,0.03]
[1766691398571,0.02476272,88167.0,88156.0,0.03]
[1766691398758,0.01152,88169.0,88156.0,0.03]
[1766691399059,0.02476271,88168.0,88156.0,0.03]
[1766691399259,0.02476271,88167.0,88156.0,0.03]
[1766691399557,0.01152,88169.0,88156.0,0.03]
[1766691399757,0.02476423,88168.0,88156.0,0.03]
[1766691399956,0.02476423,88167.0,88156.0,0.03]
[1766691400157,0.01152,88169.0,88156.0,0.03]
[1766691400367,0.02476614,88168.0,88156.0,0.03]
[1766691400567,0.02476614,88167.0,88156.0,0.03]
[1766691400769,0.01152,88169.0,88156.0,0.03]
[1766691400972,0.02476615,88168.0,88156.0,0.03]
[1766691401158,0.02476615,88167.0,88156.0,0.03]
[1766691401476,0.02476615,88166.0,88156.0,0.03]
[1766691401670,0.01152,88169.0,88156.0,0.03]
[1766691401870,0.02476857,88168.0,88156.0,0.03]
[1766691402066,0.02476857,88167.0,88156.0,0.03]
[1766691402369,0.02476857,88166.0,88156.0,0.03]
[1766691402570,0.01152,88169.0,88156.0,0.03]
[1766691402871,0.02477251,88168.0,88156.0,0.03]
[1766691403070,0.02477251,88167.0,88156.0,0.03]
[1766691403271,0.02477251,88166.0,88156.0,0.03]
[1766691403476,0.01152,88169.0,88156.0,0.03]
[1766691403670,0.01135,88167.0,88156.0,0.03]
[1766691403972,0.02477417,88166.0,88156.0,0.03]
[1766691404177,0.01135,88167.0,88156.0,0.03]
[1766691404367,0.0247759,88166.0,88156.0,0.03]
[1766691404567,0.01135,88167.0,88156.0,0.03]
[1766691404767,0.02477602,88166.0,88156.0,0.03]
[1766691405067,0.01135,88167.0,88156.0,0.03]
[1766691405260,0.02477598,88166.0,88156.0,0.03]
[1766691405458,0.01135,88167.0,88156.0,0.03]
[1766691405672,0.0247785,88166.0,88156.0,0.03]
[1766691405871,0.01135,88167.0,88156.0,0.03]
[1766691406079,0.02477864,88166.0,88156.0,0.03]
[1766691406275,0.01135,88167.0,88156.0,0.03]
[1766691406470,0.02477879,88166.0,88156.0,0.03]
[1766691406775,0.01135,88167.0,88156.0,0.03]
[1766691406975,0.02477879,88166.0,88156.0,0.03]
[1766691407165,0.01135,88167.0,88156.0,0.03]
[1766691407362,0.02477878,88166.0,88156.0,0.03]
[1766691407563,0.01135,88167.0,88156.0,0.03]
[1766691407763,0.02477878,88166.0,88156.0,0.03]
[1766691407963,0.01135,88167.0,88156.0,0.03]
[1766691408257,0.02477878,88166.0,88156.0,0.03]
[1766691408462,0.01135,88167.0,88156.0,0.03]
[1766691408677,0.02477876,88166.0,88156.0,0.03]
[1766691408867,0.02477876,88165.0,88156.0,0.03]
[1766691409067,0.02477876,88164.0,88156.0,0.03]
[1766691409276,0.02477876,88163.0,88156.0,0.03]
[1766691409478,0.02477876,88162.0,88156.0,0.03]
[1766691409775,0.01135,88167.0,88156.0,0.03]
[1766691409976,0.02477875,88166.0,88156.0,0.03]
[1766691410178,0.02477875,88165.0,88156.0,0.03]
[1766691410474,0.02477875,88164.0,88156.0,0.03]
[1766691410675,0.02477875,88163.0,88156.0,0.03]
[1766691410877,0.02477875,88162.0,88156.0,0.03]
[1766691411075,0.01135,88167.0,88156.0,0.03]
[1766691411377,0.02477876,88166.0,88156.0,0.03]
[1766691411675,0.02477876,88165.0,88156.0,0.03]
[1766691411866,0.02477876,88164.0,88156.0,0.03]
[1766691412067,0.02477876,88163.0,88156.0,0.03]
[1766691412367,0.02477876,88162.0,88156.0,0.03]
[1766691412567,0.0001702,88169.0,88156.0,0.03]
[1766691412866,0.0247788,88168.0,88156.0,0.03]
[1766691413066,0.0247788,88167.0,88156.0,0.03]
[1766691413266,0.0247788,88166.0,88156.0,0.03]
[1766691413468,0.0247788,88165.0,88156.0,0.03]
[1766691413664,0.0247788,88164.0,88156.0,0.03]
[1766691413864,0.0247788,88163.0,88156.0,0.03]
[1766691414077,0.0247788,88162.0,88156.0,0.03]
[1766691414277,0.0001702,88169.0,88156.0,0.03]
[1766691414478,0.02477887,88168.0,88156.0,0.03]
[1766691414678,0.02477887,88167.0,88156.0,0.03]
[1766691414878,0.02477887,88166.0,88156.0,0.03]
[1766691415069,0.02477887,88165.0,88156.0,0.03]
[1766691415369,0.02477887,88164.0,88156.0,0.03]
[1766691415669,0.02477887,88163.0,88156.0,0.03]
[1766691415867,0.02477887,88162.0,88156.0,0.03]
[1766691416169,0.0113499,88168.0,88156.0,0.03]
[1766691416364,0.02477906,88167.0,88156.0,0.03]
[1766691416566,0.02477906,88166.0,88156.0,0.03]
[1766691416779,0.02477906,88165.0,88156.0,0.03]
[1766691416966,0.02477906,88164.0,88156.0,0.03]
[1766691417265,0.02477906,88163.0,88156.0,0.03]
[1766691417467,0.02477906,88162.0,88156.0,0.03]
[1766691417768,0.02477906,88161.0,88156.0,0.03]
[1766691417966,0.0001702,88169.0,88156.0,0.03]
[1766691418168,0.02478222,88168.0,88156.0,0.03]
[1766691418462,0.0001702,88169.0,88156.0,0.03]
[1766691418463,0.02478222,88167.0,88156.0,0.03]
[1766691418665,0.02478222,88166.0,88156.0,0.03]
[1766691418863,0.0001702,88169.0,88156.0,0.03]
[1766691419062,0.0247823,88168.0,88156.0,0.03]
[1766691419280,0.0247823,88167.0,88156.0,0.0413514]
[1766691419578,0.0247823,88166.0,88156.0,0.0413514]
[1766691419773,0.0001702,88169.0,88156.0,0.0413514]
[1766691419972,0.02478233,88168.0,88156.0,0.0413514]
[1766691420173,0.02478233,88167.0,88156.0,0.0413514]
[1766691420472,0.02478233,88166.0,88156.0,0.0413514]
[1766691420674,0.0001702,88169.0,88156.0,0.0413514]
[1766691420876,0.02478233,88168.0,88156.0,0.0413514]
[1766691421074,0.02478233,88167.0,88156.0,0.0413514]
[1766691421275,0.02478233,88166.0,88156.0,0.0413514]
[1766691421475,0.0001702,88169.0,88156.0,0.0413514]
[1766691421675,0.02478237,88168.0,88156.0,0.0413514]
[1766691421877,0.02478237,88167.0,88156.0,0.0413514]
[1766691422073,0.02478237,88166.0,88156.0,0.0413514]
[1766691422269,0.0001702,88169.0,88156.0,0.0413514]
[1766691422470,0.0247819,88168.0,88156.0,0.0413514]
[1766691422670,0.0001702,88169.0,88156.0,0.03]
[1766691424180,0.0001702,88169.0,88159.0,0.011351]
[1766691424881,0.107829,88175.0,88159.0,0.011351]
[1766691425071,0.1646287,88178.0,88161.0,0.0113507]
[1766691425876,0.1647989,88178.0,88161.0,0.0115209]
[1766691428287,0.0113489,88176.0,88161.0,0.0115209]
[1766691430488,0.0113489,88176.0,88161.0,0.0001702]
[1766691430989,0.0113491,88174.0,88161.0,0.0001702]
[1766691431791,0.1534502,88178.0,88161.0,0.0001702]
[1766691432180,0.0113498,88169.0,88161.0,0.0001702]
[1766691432878,0.0113494,88172.0,88161.0,0.0001702]
[1766691433078,0.011349,88175.0,88161.0,0.0001702]
[1766691434879,0.024672,88174.0,88161.0,0.0001702]
[1766691435079,0.024672,88173.0,88161.0,0.0001702]
[1766691435374,0.024672,88172.0,88161.0,0.0001702]
[1766691435579,0.024672,88171.0,88161.0,0.0001702]
[1766691435780,0.024672,88170.0,88161.0,0.0001702]
[1766691435976,0.024672,88169.0,88161.0,0.0001702]
[1766691436187,0.024672,88168.0,88161.0,0.0001702]
[1766691436392,0.024672,88167.0,88161.0,0.0001702]
[1766691436589,0.0113493,88173.0,88161.0,0.0001702]
[1766691436888,0.0246704,88172.0,88161.0,0.0001702]
[1766691437090,0.0246704,88171.0,88161.0,0.0001702]
[1766691437289,0.0246704,88170.0,88161.0,0.0001702]
[1766691437496,0.0246704,88169.0,88161.0,0.0001702]
[1766691437685,0.0246704,88168.0,88161.0,0.0001702]
[1766691437885,0.0246704,88167.0,88161.0,0.0001702]
[1766691438085,0.0113493,88173.0,88161.0,0.0001702]
[1766691438286,0.02467075,88172.0,88161.0,0.0001702]
[1766691438486,0.02467075,88171.0,88161.0,0.0001702]
[1766691438791,0.02467075,88170.0,88161.0,0.0001702]
[1766691438999,0.02467075,88169.0,88161.0,0.0001702]
[1766691439293,0.02467075,88168.0,88161.0,0.0001702]
[1766691439494,0.02467075,88167.0,88161.0,0.0001702]
[1766691439686,0.0113492,88174.0,88161.0,0.0001702]
[1766691439884,0.02467094,88173.0,88161.0,0.0001702]
[1766691440183,0.02467094,88172.0,88161.0,0.0001702]
[1766691440382,0.02467094,88171.0,88161.0,0.0001702]
[1766691440584,0.02467094,88170.0,88161.0,0.0001702]
[1766691440790,0.02467094,88169.0,88161.0,0.0001702]
[1766691440988,0.02467094,88168.0,88161.0,0.0001702]
[1766691441189,0.02467094,88167.0,88161.0,0.0001702]
[1766691441389,0.0113492,88174.0,88161.0,0.0001702]
[1766691441590,0.02467115,88173.0,88161.0,0.0001702]
[1766691441790,0.02467115,88172.0,88161.0,0.0001702]
[1766691441991,0.02467115,88171.0,88161.0,0.0001702]
[1766691442192,0.02467115,88170.0,88161.0,0.0001702]
[1766691442492,0.02467115,88169.0,88161.0,0.0001702]
[1766691442691,0.02467115,88168.0,88161.0,0.0001702]
[1766691442894,0.02467115,88167.0,88161.0,0.0001702]
[1766691443093,0.0113492,88174.0,88161.0,0.0001702]
[1766691443299,0.02467144,88173.0,88161.0,0.0001702]
[1766691443491,0.02467144,88172.0,88161.0,0.0001702]
[1766691443698,0.02467144,88171.0,88161.0,0.0001702]
[1766691443889,0.02467144,88170.0,88161.0,0.0001702]
[1766691444086,0.02467144,88169.0,88161.0,0.0001702]
[1766691444304,0.02467144,88168.0,88161.0,0.0001702]
[1766691444492,0.02467144,88167.0,88161.0,0.0001702]
[1766691444800,0.0113492,88174.0,88161.0,0.0001702]
[1766691445099,0.02467175,88173.0,88161.0,0.0001702]
[1766691445300,0.02467175,88172.0,88161.0,0.0001702]
[1766691445500,0.02467175,88171.0,88161.0,0.0001702]
[1766691445698,0.02467175,88170.0,88161.0,0.0001702]